fUST/lending_fUST_20241229
["ID","MTS","AMOUNT","RATE_DAILY","PERIOD"]
[347036822,1735479044372,-500.0,0.0001034,2]
[347036824,1735479044381,-500.0,0.0001034,2]
[347036826,1735479044390,-500.0,0.0001034,2]
[347036828,1735479044400,-500.0,0.0001034,2]
[347036830,1735479044412,-500.0,0.0001034,2]
[347036832,1735479044422,-720.35,0.0001034,2]
[347036835,1735479044432,-500.0,0.0001034,2]
[347036836,1735479044441,-500.0,0.0001034,2]
[347036839,1735479044451,-578.48,0.0001034,2]
[347036840,1735479044460,-862.16,0.0001034,2]
[347036843,1735479044469,-780.7,0.0001034,2]
[347036845,1735479044479,-500.0,0.0001034,2]
[347036847,1735479044488,-1582.26,0.0001034,2]
[347036849,1735479044498,-500.0,0.0001034,2]
[347036851,1735479044507,-2217.88,0.0001034,2]
[347036853,1735479044516,-650.03,0.0001034,2]
[347036855,1735479044525,-500.0,0.0001034,2]
[347036857,1735479044534,-500.0,0.0001034,2]
[347036859,1735479044544,-535.45,0.0001034,2]
[347036861,1735479044553,-500.0,0.0001034,2]
[347036863,1735479044562,-676.26,0.0001034,2]
[347036864,1735479044572,-906.78,0.0001034,2]
[347036866,1735479044581,-500.0,0.0001034,2]
[347036868,1735479044592,-500.0,0.0001034,2]
[347036870,1735479044602,-500.0,0.0001034,2]
[347036873,1735479044611,-618.99,0.0001034,2]
[347036874,1735479044621,-500.0,0.0001034,2]
[347036876,1735479044630,-500.0,0.0001034,2]
[347036879,1735479044640,-500.0,0.00010341,2]
[347036881,1735479044649,-500.0,0.00010341,2]
[347036883,1735479044659,-500.0,0.00010341,2]
[347036884,1735479044668,-15859.75,0.00010341,2]
[347036887,1735479044682,-562.79,0.00010341,2]
[347036889,1735479044691,-500.0,0.00010341,2]
[347036891,1735479044701,-500.0,0.00010342,2]
[347036892,1735479044711,-2607.84,0.00010342,2]
[347036895,1735479044721,-500.0,0.00010342,2]
[347036897,1735479044730,-500.0,0.00010342,2]
[347036898,1735479044739,-500.0,0.00010342,2]
[347036901,1735479044749,-500.0,0.00010342,2]
[347036903,1735479044759,-500.0,0.00010342,2]
[347036905,1735479044768,-500.0,0.00010342,2]
[347036907,1735479044777,-500.0,0.00010342,2]
[347036909,1735479044786,-545.84,0.00010342,2]
[347036911,1735479044795,-500.0,0.00010342,2]
[347036912,1735479044804,-500.0,0.00010342,2]
[347036914,1735479044814,-500.0,0.00010342,2]
[347036917,1735479044824,-500.0,0.00010342,2]
[347036919,1735479044833,-583.64,0.00010342,2]
[347036921,1735479044842,-4074.11,0.00010342,2]
[347036922,1735479044851,-500.0,0.00010342,2]
[347036925,1735479044861,-500.0,0.00010342,2]
[347036927,1735479044871,-470.4024419,0.00010377,2]
[347036929,1735479044880,-7640.77159283,0.00010515,2]
[347036931,1735479044889,-500.0,0.00010613,2]
[347036933,1735479044898,-1287.74,0.00010613,2]
[347036935,1735479044907,-643.08,0.00010613,2]
[347036937,1735479044916,-500.0,0.00010614,2]
[347036939,1735479044926,-500.0,0.00010614,2]
[347036941,1735479044935,-526.63,0.00010614,2]
[347036943,1735479044945,-500.0,0.00010614,2]
[347036945,1735479044954,-500.0,0.00010614,2]
[347036947,1735479044963,-500.0,0.00010614,2]
[347036949,1735479044972,-500.0,0.00010614,2]
[347036958,1735479044981,-500.0,0.00010614,2]
[347036961,1735479045064,-500.0,0.00010614,2]
[347036963,1735479045074,-500.0,0.00010614,2]
[347036965,1735479045084,-500.0,0.00010614,2]
[347036967,1735479045093,-500.0,0.00010614,2]
[347036969,1735479045103,-500.0,0.00010614,2]
[347036971,1735479045112,-500.0,0.00010614,2]
[347036973,1735479045121,-500.0,0.00010614,2]
[347036975,1735479045130,-500.0,0.00010614,2]
[347036977,1735479045139,-609.24,0.00010614,2]
[347036979,1735479045149,-500.0,0.00010614,2]
[347036981,1735479045159,-500.0,0.00010614,2]
[347036983,1735479045168,-194.75060377,0.00010614,2]
[347036985,1735479045177,-500.0,0.00010614,2]
[347036987,1735479045186,-500.0,0.00010614,2]
[347036989,1735479045195,-500.0,0.00010614,2]
[347036991,1735479045204,-500.0,0.00010614,2]
[347036993,1735479045214,-500.0,0.00010614,2]
[347036995,1735479045223,-500.0,0.00010614,2]
[347036997,1735479045232,-720.35,0.00010614,2]
[347036999,1735479045241,-500.0,0.00010614,2]
[347037001,1735479045251,-500.0,0.00010614,2]
[347037003,1735479045260,-500.0,0.00010614,2]
[347037005,1735479045269,-578.48,0.00010614,2]
[347037007,1735479045278,-862.16,0.00010614,2]
[347037009,1735479045287,-780.7,0.00010614,2]
[347037011,1735479045297,-500.0,0.00010614,2]
[347037013,1735479045306,-1582.26,0.00010614,2]
[347037015,1735479045315,-500.0,0.00010614,2]
[347037017,1735479045325,-2217.88,0.00010614,2]
[347037019,1735479045335,-650.03,0.00010614,2]
[347037021,1735479045343,-500.0,0.00010614,2]
[347037023,1735479045353,-500.0,0.00010614,2]
[347037025,1735479045362,-535.45,0.00010614,2]
[347037027,1735479045370,-500.0,0.00010614,2]
[347037029,1735479045379,-676.26,0.00010614,2]
[347037031,1735479045389,-906.78,0.00010614,2]
[347037033,1735479045398,-500.0,0.00010614,2]
[347037035,1735479045407,-500.0,0.00010614,2]
[347037037,1735479045416,-500.0,0.00010614,2]
[347037039,1735479045426,-618.99,0.00010614,2]
[347037041,1735479045435,-500.0,0.00010614,2]
[347037043,1735479045444,-500.0,0.00010614,2]
[347037045,1735479045454,-500.0,0.00010615,2]
[347037047,1735479045463,-500.0,0.00010615,2]
[347037049,1735479045473,-500.0,0.00010615,2]
[347037051,1735479045482,-15859.75,0.00010615,2]
[347037053,1735479045492,-562.79,0.00010615,2]
[347037055,1735479045501,-500.0,0.00010615,2]
[347037057,1735479045511,-500.0,0.00010616,2]
[347037059,1735479045520,-2607.84,0.00010616,2]
[347037061,1735479045530,-519.54130801,0.00010616,2]
[347037063,1735479045538,-500.0,0.00010616,2]
[347037065,1735479045548,-500.0,0.00010616,2]
[347037067,1735479045557,-500.0,0.00010616,2]
[347037069,1735479045567,-500.0,0.00010616,2]
[347037071,1735479045576,-500.0,0.00010616,2]
[347037073,1735479045586,-500.0,0.00010616,2]
[347037075,1735479045595,-545.84,0.00010616,2]
[347037077,1735479045604,-500.0,0.00010616,2]
[347037079,1735479045613,-500.0,0.00010616,2]
[347037081,1735479045623,-500.0,0.00010616,2]
[347037083,1735479045632,-500.0,0.00010616,2]
[347037085,1735479045641,-583.64,0.00010616,2]
[347037087,1735479045651,-4074.11,0.00010616,2]
[347037090,1735479045660,-500.0,0.00010616,2]
[347037091,1735479045670,-500.0,0.00010616,2]
[347037094,1735479045683,-470.4024419,0.00010857,2]
[347037096,1735479045692,-500.0,0.00010887,2]
[347037098,1735479045701,-1287.74,0.00010887,2]
[347037100,1735479045710,-643.08,0.00010887,2]
[347037102,1735479045722,-500.0,0.00010888,2]
[347037104,1735479045731,-194.16,0.00010888,2]
[347037106,1735479045740,-526.63,0.00010888,2]
[347037108,1735479045750,-500.0,0.00010888,2]
[347037110,1735479045760,-500.0,0.00010888,2]
[347037112,1735479045769,-500.0,0.00010888,2]
[347037114,1735479045779,-500.0,0.00010888,2]
[347037116,1735479045788,-550.69777991,0.00010888,2]
[347037117,1735479045798,-500.0,0.00010888,2]
[347037119,1735479045807,-500.0,0.00010888,2]
[347037121,1735479045817,-500.0,0.00010888,2]
[347037124,1735479045829,-500.0,0.00010888,2]
[347037125,1735479045838,-500.0,0.00010888,2]
[347037127,1735479045848,-500.0,0.00010888,2]
[347037129,1735479045857,-500.0,0.00010888,2]
[347037131,1735479045866,-500.0,0.00010888,2]
[347037134,1735479045875,-609.24,0.00010888,2]
[347037136,1735479045884,-500.0,0.00010888,2]
[347037138,1735479045893,-500.0,0.00010888,2]
[347037140,1735479045903,-500.0,0.00010888,2]
[347037142,1735479045911,-500.0,0.00010888,2]
[347037144,1735479045921,-500.0,0.00010888,2]
[347037146,1735479045930,-500.0,0.00010888,2]
[347037148,1735479045939,-500.0,0.00010888,2]
[347037150,1735479045948,-500.0,0.00010888,2]
[347037152,1735479045957,-720.35,0.00010888,2]
[347037154,1735479045966,-500.0,0.00010888,2]
[347037156,1735479045975,-500.0,0.00010888,2]
[347037158,1735479045984,-500.0,0.00010888,2]
[347037159,1735479045994,-578.48,0.00010888,2]
[347037160,1735479046003,-862.16,0.00010888,2]
[347037161,1735479046011,-780.7,0.00010888,2]
[347037162,1735479046020,-500.0,0.00010888,2]
[347037163,1735479046029,-1582.26,0.00010888,2]
[347037164,1735479046038,-2217.88,0.00010888,2]
[347037165,1735479046047,-500.0,0.00010888,2]
[347037166,1735479046056,-650.03,0.00010888,2]
[347037167,1735479046065,-500.0,0.00010888,2]
[347037168,1735479046076,-500.0,0.00010888,2]
[347037169,1735479046085,-535.45,0.00010888,2]
[347037170,1735479046094,-392.34012609,0.00010888,2]
[347037171,1735479046103,-676.26,0.00010888,2]
[347037172,1735479046112,-906.78,0.00010888,2]
[347037173,1735479046121,-500.0,0.00010888,2]
[347037174,1735479046130,-500.0,0.00010888,2]
[347037176,1735479046140,-618.99,0.00010888,2]
[347037178,1735479046149,-500.0,0.00010888,2]
[347037180,1735479046159,-500.0,0.00010888,2]
[347037182,1735479046167,-500.0,0.00010889,2]
[347037184,1735479046176,-485.46221003,0.00010889,2]
[347037186,1735479046185,-15859.75,0.00010889,2]
[347037187,1735479046194,-562.79,0.00010889,2]
[347037189,1735479046203,-500.0,0.00010889,2]
[347037191,1735479046212,-500.0,0.0001089,2]
[347037193,1735479046222,-2607.84,0.0001089,2]
[347037195,1735479046231,-500.0,0.0001089,2]
[347037197,1735479046241,-500.0,0.0001089,2]
[347037199,1735479046250,-500.0,0.0001089,2]
[347037201,1735479046259,-500.0,0.0001089,2]
[347037203,1735479046268,-500.0,0.0001089,2]
[347037205,1735479046277,-500.0,0.0001089,2]
[347037207,1735479046286,-545.84,0.0001089,2]
[347037209,1735479046295,-500.0,0.0001089,2]
[347037211,1735479046304,-500.0,0.0001089,2]
[347037213,1735479046313,-500.0,0.0001089,2]
[347037215,1735479046323,-500.0,0.0001089,2]
[347037217,1735479046332,-583.64,0.0001089,2]
[347037219,1735479046341,-4074.11,0.0001089,2]
[347037221,1735479046350,-438.29445206,0.0001089,2]
[347037223,1735479046359,-500.0,0.0001089,2]
[347037225,1735479046368,-500.0,0.00011161,2]
[347037227,1735479046377,-1287.74,0.00011161,2]
[347037229,1735479046386,-643.08,0.00011161,2]
[347037231,1735479046395,-500.0,0.00011162,2]
[347037233,1735479046404,-526.63,0.00011162,2]
[347037235,1735479046413,-500.0,0.00011162,2]
[347037237,1735479046422,-500.0,0.00011162,2]
[347037239,1735479046432,-500.0,0.00011162,2]
[347037241,1735479046441,-500.0,0.00011162,2]
[347037242,1735479046449,-495.80818169,0.00011162,2]
[347037244,1735479046459,-500.0,0.00011162,2]
[347037246,1735479046468,-500.0,0.00011162,2]
[347037248,1735479046477,-500.0,0.00011162,2]
[347037250,1735479046487,-500.0,0.00011162,2]
[347037252,1735479046496,-500.0,0.00011162,2]
[347037254,1735479046505,-500.0,0.00011162,2]
[347037256,1735479046515,-500.0,0.00011162,2]
[347037258,1735479046525,-609.24,0.00011162,2]
[347037260,1735479046534,-500.0,0.00011162,2]
[347037262,1735479046543,-500.0,0.00011162,2]
[347037264,1735479046552,-500.0,0.00011162,2]
[347037266,1735479046561,-247.08959609,0.00011162,2]
[347037275,1735479046637,-500.0,0.00011162,2]
[347037277,1735479046647,-500.0,0.00011162,2]
[347037279,1735479046656,-500.0,0.00011162,2]
[347037281,1735479046666,-500.0,0.00011162,2]
[347037283,1735479046680,-720.35,0.00011162,2]
[347037285,1735479046689,-500.0,0.00011162,2]
[347037287,1735479046699,-500.0,0.00011162,2]
[347037289,1735479046708,-500.0,0.00011162,2]
[347037291,1735479046717,-578.48,0.00011162,2]
[347037293,1735479046726,-862.16,0.00011162,2]
[347037295,1735479046735,-780.7,0.00011162,2]
[347037297,1735479046745,-500.0,0.00011162,2]
[347037299,1735479046754,-1582.26,0.00011162,2]
[347037301,1735479046764,-2217.88,0.00011162,2]
[347037303,1735479046774,-650.03,0.00011162,2]
[347037305,1735479046783,-500.0,0.00011162,2]
[347037307,1735479046793,-500.0,0.00011162,2]
[347037309,1735479046802,-174.51153155,0.00011162,2]
[347037311,1735479046812,-535.45,0.00011162,2]
[347037313,1735479046822,-676.26,0.00011162,2]
[347037315,1735479046832,-906.78,0.00011162,2]
[347037317,1735479046841,-500.0,0.00011162,2]
[347037319,1735479046851,-500.0,0.00011162,2]
[347037321,1735479046860,-618.99,0.00011162,2]
[347037323,1735479046870,-500.0,0.00011162,2]
[347037325,1735479046879,-500.0,0.00011162,2]
[347037327,1735479046888,-500.0,0.00011163,2]
[347037329,1735479046897,-15859.75,0.00011163,2]
[347037331,1735479046907,-562.79,0.00011163,2]
[347037333,1735479046916,-500.0,0.00011164,2]
[347037335,1735479046925,-2607.84,0.00011164,2]
[347037337,1735479046934,-423.38442397,0.00011164,2]
[347037339,1735479046943,-500.0,0.00011164,2]
[347037341,1735479046953,-500.0,0.00011164,2]
[347037343,1735479046962,-500.0,0.00011164,2]
[347037345,1735479046971,-500.0,0.00011164,2]
[347037347,1735479046981,-181.77235031,0.00011164,2]
[347037349,1735479046990,-545.84,0.00011164,2]
[347037351,1735479046999,-500.0,0.00011164,2]
[347037353,1735479047008,-500.0,0.00011164,2]
[347037355,1735479047017,-500.0,0.00011164,2]
[347037357,1735479047027,-500.0,0.00011164,2]
[347037359,1735479047036,-583.64,0.00011164,2]
[347037361,1735479047046,-4074.11,0.00011164,2]
[347037363,1735479047055,-577.81,0.00011164,2]
[347037365,1735479047065,-587.0,0.00011183,2]
[347037367,1735479047076,-536.4699397,0.00011288,2]
[347037369,1735479047085,-470.4024419,0.00011336,2]
[347037371,1735479047096,-500.0,0.00011435,2]
[347037373,1735479047105,-1287.74,0.00011435,2]
[347037375,1735479047115,-643.08,0.00011435,2]
[347037377,1735479047125,-429.48,0.00011436,2]
[347037380,1735479047134,-526.63,0.00011436,2]
[347037381,1735479047145,-500.0,0.00011436,2]
[347037383,1735479047155,-500.0,0.00011436,2]
[347037385,1735479047164,-500.0,0.00011436,2]
[347037387,1735479047174,-500.0,0.00011436,2]
[347037389,1735479047183,-500.0,0.00011436,2]
[347037392,1735479047192,-500.0,0.00011436,2]
[347037393,1735479047202,-500.0,0.00011436,2]
[347037396,1735479047212,-500.0,0.00011436,2]
[347037398,1735479047222,-500.0,0.00011436,2]
[347037399,1735479047233,-500.0,0.00011436,2]
[347037401,1735479047243,-500.0,0.00011436,2]
[347037403,1735479047252,-609.24,0.00011436,2]
[347037406,1735479047262,-500.0,0.00011436,2]
[347037408,1735479047271,-155.04,0.00011436,2]
[347037409,1735479047281,-500.0,0.00011436,2]
[347037411,1735479047290,-500.0,0.00011436,2]
[347037413,1735479047300,-500.0,0.00011436,2]
[347037415,1735479047309,-500.0,0.00011436,2]
[347037417,1735479047319,-720.35,0.00011436,2]
[347037420,1735479047328,-500.0,0.00011436,2]
[347037421,1735479047338,-500.0,0.00011436,2]
[347037424,1735479047347,-500.0,0.00011436,2]
[347037425,1735479047357,-578.48,0.00011436,2]
[347037427,1735479047365,-862.16,0.00011436,2]
[347037429,1735479047375,-780.7,0.00011436,2]
[347037431,1735479047384,-1582.26,0.00011436,2]
[347037433,1735479047394,-500.0,0.00011436,2]
[347037435,1735479047403,-2217.88,0.00011436,2]
[347037437,1735479047413,-650.03,0.00011436,2]
[347037439,1735479047422,-500.0,0.00011436,2]
[347037441,1735479047432,-500.0,0.00011436,2]
[347037443,1735479047441,-535.45,0.00011436,2]
[347037445,1735479047451,-676.26,0.00011436,2]
[347037447,1735479047461,-906.78,0.00011436,2]
[347037449,1735479047470,-500.0,0.00011436,2]
[347037451,1735479047480,-500.0,0.00011436,2]
[347037453,1735479047490,-618.99,0.00011436,2]
[347037455,1735479047499,-500.0,0.00011436,2]
[347037457,1735479047510,-288.97455585,0.00011436,2]
[347037459,1735479047519,-500.0,0.00011437,2]
[347037461,1735479047529,-15859.75,0.00011437,2]
[347037463,1735479047538,-562.79,0.00011437,2]
[347037465,1735479047547,-500.0,0.00011438,2]
[347037467,1735479047556,-2607.84,0.00011438,2]
[347037469,1735479047566,-571.26,0.00011438,2]
[347037471,1735479047576,-500.0,0.00011438,2]
[347037473,1735479047585,-611.96981022,0.00011438,2]
[347037475,1735479047595,-184.38630942,0.00011438,2]
[347037477,1735479047605,-545.84,0.00011438,2]
[347037479,1735479047615,-500.0,0.00011438,2]
[347037481,1735479047625,-500.0,0.00011438,2]
[347037483,1735479047635,-500.0,0.00011438,2]
[347037485,1735479047645,-500.0,0.00011438,2]
[347037487,1735479047654,-583.64,0.00011438,2]
[347037489,1735479047664,-4074.11,0.00011438,2]
[347037491,1735479047674,-159.12,0.00011494,2]
[347037494,1735479047687,-151.0,0.000115,2]
[347037496,1735479047696,-9691.95526453,0.0001156,2]
[347037498,1735479047706,-151.0,0.000116,2]
[347037500,1735479047715,-151.0,0.000117,2]
[347037502,1735479047725,-500.0,0.00011709,2]
[347037504,1735479047734,-1287.74,0.00011709,2]
[347037506,1735479047743,-643.08,0.00011709,2]
[347037508,1735479047752,-526.63,0.0001171,2]
[347037510,1735479047762,-500.0,0.0001171,2]
[347037512,1735479047771,-500.0,0.0001171,2]
[347037514,1735479047781,-500.0,0.0001171,2]
[347037515,1735479047790,-500.0,0.0001171,2]
[347037518,1735479047800,-500.0,0.0001171,2]
[347037520,1735479047809,-500.0,0.0001171,2]
[347037521,1735479047819,-500.0,0.0001171,2]
[347037524,1735479047828,-500.0,0.0001171,2]
[347037525,1735479047837,-500.0,0.0001171,2]
[347037527,1735479047847,-500.0,0.0001171,2]
[347037529,1735479047856,-500.0,0.0001171,2]
[347037531,1735479047866,-609.24,0.0001171,2]
[347037533,1735479047875,-500.0,0.0001171,2]
[347037536,1735479047885,-500.0,0.0001171,2]
[347037537,1735479047895,-500.0,0.0001171,2]
[347037540,1735479047904,-500.0,0.0001171,2]
[347037541,1735479047914,-500.0,0.0001171,2]
[347037542,1735479047923,-720.35,0.0001171,2]
[347037543,1735479047933,-500.0,0.0001171,2]
[347037544,1735479047942,-500.0,0.0001171,2]
[347037545,1735479047952,-500.0,0.0001171,2]
[347037546,1735479047961,-578.48,0.0001171,2]
[347037547,1735479047970,-862.16,0.0001171,2]
[347037548,1735479047979,-780.7,0.0001171,2]
[347037549,1735479047988,-1582.26,0.0001171,2]
[347037550,1735479047997,-500.0,0.0001171,2]
[347037551,1735479048006,-2217.88,0.0001171,2]
[347037552,1735479048015,-650.03,0.0001171,2]
[347037553,1735479048025,-598.43560107,0.0001171,2]
[347037554,1735479048034,-500.0,0.0001171,2]
[347037556,1735479048043,-535.45,0.0001171,2]
[347037557,1735479048052,-676.26,0.0001171,2]
[347037559,1735479048061,-906.78,0.0001171,2]
[347037568,1735479048135,-500.0,0.0001171,2]
[347037570,1735479048145,-500.0,0.0001171,2]
[347037572,1735479048155,-618.99,0.0001171,2]
[347037574,1735479048166,-500.0,0.0001171,2]
[347037576,1735479048175,-545.72,0.00011711,2]
[347037578,1735479048186,-15859.75,0.00011711,2]
[347037580,1735479048195,-562.79,0.00011711,2]
[347037582,1735479048204,-302.04588257,0.00011712,2]
[347037584,1735479048214,-2607.84,0.00011712,2]
[347037586,1735479048223,-391.659,0.00011712,2]
[347037588,1735479048233,-228.20931706,0.00011712,2]
[347037590,1735479048242,-500.0,0.00011712,2]
[347037592,1735479048251,-545.84,0.00011712,2]
[347037594,1735479048260,-500.0,0.00011712,2]
[347037596,1735479048269,-500.0,0.00011712,2]
[347037598,1735479048278,-500.0,0.00011712,2]
[347037600,1735479048287,-500.0,0.00011712,2]
[347037602,1735479048297,-583.64,0.00011712,2]
[347037604,1735479048306,-4074.11,0.00011712,2]
[347037606,1735479048316,-6101.96351348,0.000118,2]
[347037608,1735479048326,-151.0,0.000118,2]
[347037610,1735479048336,-349.4688288,0.0001188,2]
[347037612,1735479048345,-666.0,0.000119,2]
[347037614,1735479048355,-151.0,0.000119,2]
[347037616,1735479048364,-250.69798575,0.000119,2]
[347037618,1735479048373,-500.47409598,0.00011973,2]
[347037620,1735479048382,-500.0,0.00011973,2]
[347037622,1735479048392,-444.98182323,0.00011973,2]
[347037624,1735479048402,-403.62720891,0.00011973,2]
[347037626,1735479048411,-500.0,0.00011973,2]
[347037628,1735479048420,-161.75045011,0.00011973,2]
[347037630,1735479048430,-563.95017431,0.00011973,2]
[347037632,1735479048439,-500.0,0.00011973,2]
[347037634,1735479048449,-159.22915729,0.00011973,2]
[347037636,1735479048458,-500.95555727,0.00011973,2]
[347037638,1735479048468,-526.76271154,0.00011973,2]
[347037640,1735479048477,-500.0,0.00011973,2]
[347037642,1735479048487,-501.55569054,0.00011973,2]
[347037644,1735479048497,-500.0,0.00011973,2]
[347037646,1735479048506,-500.60546764,0.00011973,2]
[347037648,1735479048516,-163.37597759,0.00011973,2]
[347037650,1735479048526,-500.0,0.00011973,2]
[347037652,1735479048535,-436.6304582,0.00011973,2]
[347037654,1735479048545,-500.0,0.00011973,2]
[347037656,1735479048555,-500.0,0.00011983,2]
[347037659,1735479048565,-1287.74,0.00011983,2]
[347037661,1735479048576,-643.08,0.00011983,2]
[347037663,1735479048586,-526.63,0.00011984,2]
[347037665,1735479048595,-500.0,0.00011984,2]
[347037667,1735479048605,-500.0,0.00011984,2]
[347037669,1735479048614,-500.0,0.00011984,2]
[347037670,1735479048623,-500.0,0.00011984,2]
[347037672,1735479048633,-500.0,0.00011984,2]
[347037674,1735479048643,-549.44673543,0.00011984,2]
[347037676,1735479048652,-500.0,0.00011984,2]
[347037678,1735479048661,-500.0,0.00011984,2]
[347037680,1735479048671,-500.0,0.00011984,2]
[347037682,1735479048680,-382.88520881,0.00011984,2]
[347037685,1735479048690,-609.24,0.00011984,2]
[347037687,1735479048700,-500.0,0.00011984,2]
[347037688,1735479048709,-500.0,0.00011984,2]
[347037691,1735479048719,-500.0,0.00011984,2]
[347037692,1735479048728,-461.68410974,0.00011984,2]
[347037694,1735479048737,-500.0,0.00011984,2]
[347037696,1735479048747,-720.35,0.00011984,2]
[347037698,1735479048757,-500.0,0.00011984,2]
[347037701,1735479048767,-500.0,0.00011984,2]
[347037703,1735479048777,-151.0,0.00011984,2]
[347037705,1735479048786,-151.0,0.00011984,2]
[347037707,1735479048801,-1105.459094,0.00011984,2]
[347037710,1735479048819,-500.0,0.00011984,2]
[347037713,1735479048834,-1105.459094,0.00011984,2]
[347037715,1735479048848,-578.48,0.00011984,2]
[347037718,1735479048864,-862.16,0.00011984,2]
[347037720,1735479048879,-780.7,0.00011984,2]
[347037723,1735479048895,-1582.26,0.00011984,2]
[347037726,1735479048910,-500.0,0.00011984,2]
[347037728,1735479048926,-2217.88,0.00011984,2]
[347037731,1735479048940,-650.03,0.00011984,2]
[347037733,1735479048954,-156.995781,0.00011984,2]
[347037736,1735479048968,-156.995781,0.00011984,2]
[347037738,1735479048983,-500.0,0.00011984,2]
[347037741,1735479048997,-535.45,0.00011984,2]
[347037743,1735479049008,-676.26,0.00011984,2]
[347037745,1735479049021,-906.78,0.00011984,2]
[347037748,1735479049034,-500.0,0.00011984,2]
[347037750,1735479049048,-217.596324,0.00011984,2]
[347037753,1735479049062,-217.596324,0.00011984,2]
[347037755,1735479049078,-500.0,0.00011984,2]
[347037758,1735479049093,-618.99,0.00011984,2]
[347037761,1735479049107,-500.0,0.00011984,2]
[347037763,1735479049118,-208.273742,0.00011985,2]
[347037765,1735479049130,-505.26349,0.00011985,2]
[347037768,1735479049145,-505.26349,0.00011985,2]
[347037770,1735479049159,-151.0,0.00011985,2]
[347037772,1735479049170,-382.696265,0.00011985,2]
[347037774,1735479049183,-382.696265,0.00011985,2]
[347037777,1735479049197,-151.0,0.00011985,2]
[347037779,1735479049209,-151.0,0.00011985,2]
[347037781,1735479049220,-15859.75,0.00011985,2]
[347037784,1735479049233,-562.79,0.00011985,2]
[347037786,1735479049244,-2607.84,0.00011986,2]
[347037788,1735479049257,-500.0,0.00011986,2]
[347037790,1735479049269,-545.84,0.00011986,2]
[347037793,1735479049280,-500.0,0.00011986,2]
[347037795,1735479049292,-500.0,0.00011986,2]
[347037797,1735479049305,-151.945805,0.00011986,2]
[347037800,1735479049317,-151.0,0.00011986,2]
[347037802,1735479049330,-416.450852,0.00011986,2]
[347037804,1735479049342,-221.57055537,0.00011986,2]
[347037806,1735479049354,-151.0,0.00011986,2]
[347037808,1735479049366,-500.0,0.00011986,2]
[347037811,1735479049379,-583.64,0.00011986,2]
[347037813,1735479049392,-4074.11,0.00011986,2]
[347037815,1735479049403,-151.0,0.00011986,2]
[347037818,1735479049415,-440.426877,0.00011986,2]
[347037820,1735479049428,-273.829073,0.00011986,2]
[347037822,1735479049439,-440.426877,0.00011986,2]
[347037825,1735479049452,-829.700736,0.00011986,2]
[347037827,1735479049465,-829.700736,0.00011986,2]
[347037829,1735479049476,-151.0,0.00011986,2]
[347037832,1735479049489,-151.0,0.00011986,2]
[347037834,1735479049500,-151.0,0.00011999,2]